[Event "Late-Titled-Tuesday-Blitz-September-19-2023"]
[Site "Chess.com"]
[Date "2023.09.19"]
[Round "5"]
[White "PNEPaul"]
[Black "miraitrunks"]
[Result "0-1"]
[WhiteElo "1943"]
[BlackElo "2142"]
[TimeControl "180+1"]
[EndTime "14:52:59 PDT"]
[Termination "miraitrunks won by resignation"]

1. e4 {[%clk 0:03:00.9]} 1... c5 {[%clk 0:03:00]} 2. d4 {[%clk 0:03:00.2]} 2...
cxd4 {[%clk 0:03:00]} 3. c3 {[%clk 0:03:00.4]} 3... d3 {[%clk 0:03:00.4]} 4.
Bxd3 {[%clk 0:02:59.1]} 4... d5 {[%clk 0:03:00]} 5. e5 {[%clk 0:02:58.3]} 5...
Nc6 {[%clk 0:02:59.3]} 6. Nf3 {[%clk 0:02:58.4]} 6... Bg4 {[%clk 0:02:59]} 7.
Bf4 {[%clk 0:02:57.3]} 7... Qb6 {[%clk 0:02:57.1]} 8. Qe2 {[%clk 0:02:41.2]}
8... e6 {[%clk 0:02:54.3]} 9. O-O {[%clk 0:02:36.3]} 9... a5 {[%clk 0:02:49.4]}
10. b3 {[%clk 0:02:28.9]} 10... Nge7 {[%clk 0:02:46.2]} 11. Nbd2 {[%clk
0:02:27.2]} 11... Ng6 {[%clk 0:02:44.6]} 12. Bg3 {[%clk 0:02:27]} 12... Bc5
{[%clk 0:02:40.5]} 13. h3 {[%clk 0:02:22.6]} 13... Bh5 {[%clk 0:02:39]} 14. Bxg6
{[%clk 0:02:10.3]} 14... hxg6 {[%clk 0:02:33.9]} 15. Qd3 {[%clk 0:02:03.3]}
15... Ne7 {[%clk 0:02:12.6]} 16. Nd4 {[%clk 0:01:39.2]} 16... Bxd4 {[%clk
0:01:55.6]} 17. cxd4 {[%clk 0:01:38.4]} 17... Nf5 {[%clk 0:01:55.5]} 18. Bh2
{[%clk 0:01:20.3]} 18... Nxd4 {[%clk 0:01:45.1]} 19. g4 {[%clk 0:01:16.7]} 19...
Rc8 {[%clk 0:01:34.7]} 20. gxh5 {[%clk 0:01:14.4]} 20... Rc3 {[%clk 0:01:34]}
21. Qb1 {[%clk 0:01:04.4]} 21... Rxh3 {[%clk 0:01:25.1]} 22. Kg2 {[%clk
0:00:59.8]} 22... R8xh5 {[%clk 0:01:23.2]} 23. Rh1 {[%clk 0:00:58.7]} 23... Qb4
{[%clk 0:01:13.6]} 24. Qd1 {[%clk 0:00:51.5]} 24... Qc3 {[%clk 0:01:03.9]} 25.
Rc1 {[%clk 0:00:37.2]} 25... Rg5+ {[%clk 0:00:57.9]} 26. Kf1 {[%clk 0:00:18.9]}
26... Qd3+ {[%clk 0:00:54.1]} 27. Ke1 {[%clk 0:00:18.8]} 27... Rxe5+ {[%clk
0:00:51.5]} 0-1

[Event "Late-Titled-Tuesday-Blitz-September-19-2023"]
[Site "Chess.com"]
[Date "2023.09.19"]
[Round "5"]
[White "Haykoooo0o"]
[Black "floplover"]
[Result "1-0"]
[WhiteElo "2458"]
[BlackElo "2282"]
[TimeControl "180+1"]
[EndTime "14:53:00 PDT"]
[Termination "Haykoooo0o won by resignation"]

1. d4 {[%clk 0:02:54]} 1... d5 {[%clk 0:02:58.7]} 2. Nf3 {[%clk 0:02:52.8]} 2...
Nf6 {[%clk 0:02:57.3]} 3. e3 {[%clk 0:02:53.3]} 3... c5 {[%clk 0:02:53.7]} 4.
Bd3 {[%clk 0:02:53.3]} 4... Nc6 {[%clk 0:02:53.6]} 5. c3 {[%clk 0:02:53.5]} 5...
e6 {[%clk 0:02:53]} 6. Nbd2 {[%clk 0:02:53.8]} 6... Bd6 {[%clk 0:02:53.5]} 7.
Qe2 {[%clk 0:02:54.3]} 7... O-O {[%clk 0:02:53.4]} 8. O-O {[%clk 0:02:54.9]}
8... e5 {[%clk 0:02:50.6]} 9. dxc5 {[%clk 0:02:54.9]} 9... Bxc5 {[%clk
0:02:48.4]} 10. e4 {[%clk 0:02:55.8]} 10... Re8 {[%clk 0:02:39.3]} 11. h3 {[%clk
0:02:53.3]} 11... h6 {[%clk 0:02:37.7]} 12. exd5 {[%clk 0:02:53.3]} 12... Nxd5
{[%clk 0:02:33.3]} 13. Ne4 {[%clk 0:02:52.5]} 13... Bb6 {[%clk 0:02:21.8]} 14.
Rd1 {[%clk 0:02:51.8]} 14... Qe7 {[%clk 0:02:13.1]} 15. Ng3 {[%clk 0:02:37.5]}
15... Qc5 {[%clk 0:01:31.4]} 16. Be4 {[%clk 0:02:03.1]} 16... Be6 {[%clk
0:01:29.7]} 17. Bxd5 {[%clk 0:01:55.9]} 17... Bxd5 {[%clk 0:01:28.7]} 18. Be3
{[%clk 0:01:56.6]} 18... Bxf3 {[%clk 0:01:24.6]} 19. Qxf3 {[%clk 0:01:53.5]}
19... Qe7 {[%clk 0:01:21.5]} 20. Nf5 {[%clk 0:01:44.1]} 20... Qe6 {[%clk
0:01:17.7]} 21. Rd6 {[%clk 0:01:36.2]} 21... e4 {[%clk 0:01:03.3]} 22. Qg4
{[%clk 0:01:33]} 22... Qe5 {[%clk 0:00:57.8]} 23. Bxh6 {[%clk 0:01:01.1]} 23...
Re6 {[%clk 0:00:21.7]} 24. Bxg7 {[%clk 0:00:51.9]} 1-0

[Event "Late-Titled-Tuesday-Blitz-September-19-2023"]
[Site "Chess.com"]
[Date "2023.09.19"]
[Round "5"]
[White "PapaieDudu"]
[Black "Miguelitro69"]
[Result "1-0"]
[WhiteElo "2377"]
[BlackElo "2277"]
[TimeControl "180+1"]
[EndTime "14:53:00 PDT"]
[Termination "PapaieDudu won on time"]

1. e4 {[%clk 0:03:00.9]} 1... c5 {[%clk 0:02:59]} 2. Nf3 {[%clk 0:02:59.7]} 2...
Nc6 {[%clk 0:02:59]} 3. d4 {[%clk 0:02:56.7]} 3... cxd4 {[%clk 0:02:58.9]} 4. c3
{[%clk 0:02:57.4]} 4... dxc3 {[%clk 0:02:58.5]} 5. Nxc3 {[%clk 0:02:58.3]} 5...
e6 {[%clk 0:02:57.4]} 6. Bc4 {[%clk 0:02:58.6]} 6... a6 {[%clk 0:02:56.9]} 7.
O-O {[%clk 0:02:58.5]} 7... Nge7 {[%clk 0:02:56.9]} 8. Re1 {[%clk 0:02:57.3]}
8... Ng6 {[%clk 0:02:56.2]} 9. Be3 {[%clk 0:02:53.6]} 9... Be7 {[%clk 0:02:56]}
10. Bb3 {[%clk 0:02:53]} 10... O-O {[%clk 0:02:55.5]} 11. Qd2 {[%clk 0:02:51.5]}
11... b5 {[%clk 0:02:46.7]} 12. a4 {[%clk 0:02:50.5]} 12... b4 {[%clk
0:02:45.2]} 13. Ne2 {[%clk 0:02:50.2]} 13... Na5 {[%clk 0:02:39.3]} 14. Bc2
{[%clk 0:02:49.4]} 14... Bb7 {[%clk 0:02:36.6]} 15. Qd3 {[%clk 0:02:43.8]} 15...
Rc8 {[%clk 0:02:20.2]} 16. Red1 {[%clk 0:02:42.7]} 16... d6 {[%clk 0:02:03.9]}
17. Rac1 {[%clk 0:02:27.2]} 17... b3 {[%clk 0:01:52.1]} 18. Bb1 {[%clk
0:02:27.1]} 18... Qd7 {[%clk 0:01:52.1]} 19. h4 {[%clk 0:02:22]} 19... Qxa4
{[%clk 0:01:42.7]} 20. h5 {[%clk 0:02:20.9]} 20... Ne5 {[%clk 0:01:41.8]} 21.
Nxe5 {[%clk 0:02:20.8]} 21... dxe5 {[%clk 0:01:41.7]} 22. Nc3 {[%clk 0:02:11.5]}
22... Qb4 {[%clk 0:01:30.4]} 23. Bd2 {[%clk 0:02:06.7]} 23... Qd4 {[%clk
0:01:17.1]} 24. Qg3 {[%clk 0:02:06.7]} 24... Bxe4 {[%clk 0:00:16.8]} 25. Bxe4
{[%clk 0:01:52.3]} 25... f5 {[%clk 0:00:15.6]} 26. Bh6 {[%clk 0:01:51.2]} 26...
Rf7 {[%clk 0:00:09.9]} 27. Rxd4 {[%clk 0:01:48.8]} 27... exd4 {[%clk 0:00:10.8]}
28. Bxf5 {[%clk 0:01:09.8]} 1-0

[Event "Late-Titled-Tuesday-Blitz-September-19-2023"]
[Site "Chess.com"]
[Date "2023.09.19"]
[Round "5"]
[White "SantoBlue"]
[Black "atigerman"]
[Result "1-0"]
[WhiteElo "2957"]
[BlackElo "2681"]
[TimeControl "180+1"]
[EndTime "14:53:03 PDT"]
[Termination "SantoBlue won on time"]

1. e4 {[%clk 0:03:00.9]} 1... Nf6 {[%clk 0:02:53.8]} 2. e5 {[%clk 0:02:53.1]}
2... Nd5 {[%clk 0:02:53.6]} 3. d4 {[%clk 0:02:53.6]} 3... d6 {[%clk 0:02:53.8]}
4. Nf3 {[%clk 0:02:54.2]} 4... Nb6 {[%clk 0:02:54.2]} 5. Be2 {[%clk 0:02:53.6]}
5... g6 {[%clk 0:02:54.2]} 6. h3 {[%clk 0:02:52.8]} 6... Bg7 {[%clk 0:02:54.3]}
7. exd6 {[%clk 0:02:53.1]} 7... cxd6 {[%clk 0:02:54.1]} 8. O-O {[%clk
0:02:53.7]} 8... O-O {[%clk 0:02:54.8]} 9. Re1 {[%clk 0:02:53.2]} 9... Nc6
{[%clk 0:02:55.1]} 10. c3 {[%clk 0:02:53.1]} 10... Qc7 {[%clk 0:02:55.4]} 11.
Bf4 {[%clk 0:02:50.8]} 11... e5 {[%clk 0:02:54.3]} 12. Bh2 {[%clk 0:02:51.3]}
12... a6 {[%clk 0:02:49.5]} 13. Nbd2 {[%clk 0:02:50.9]} 13... Bf5 {[%clk
0:02:47.7]} 14. Bf1 {[%clk 0:02:44.5]} 14... Rfe8 {[%clk 0:02:47.4]} 15. Nb3
{[%clk 0:02:43.2]} 15... Rad8 {[%clk 0:02:45.1]} 16. Rc1 {[%clk 0:02:34.5]}
16... Qc8 {[%clk 0:02:39.4]} 17. d5 {[%clk 0:02:31.8]} 17... Nb8 {[%clk
0:02:17.7]} 18. c4 {[%clk 0:02:31.3]} 18... Na4 {[%clk 0:02:17.7]} 19. Qd2
{[%clk 0:02:28.5]} 19... Nc5 {[%clk 0:02:08.2]} 20. Nxc5 {[%clk 0:02:28.1]}
20... Qxc5 {[%clk 0:02:05.6]} 21. b4 {[%clk 0:02:28]} 21... Qc7 {[%clk 0:01:51]}
22. c5 {[%clk 0:02:28.6]} 22... Nd7 {[%clk 0:01:50.7]} 23. c6 {[%clk 0:02:26.2]}
23... Nf6 {[%clk 0:01:46.7]} 24. cxb7 {[%clk 0:02:15.5]} 24... Qxb7 {[%clk
0:01:45.7]} 25. Rc6 {[%clk 0:02:15]} 25... Be4 {[%clk 0:01:43.7]} 26. Bxa6
{[%clk 0:02:12.2]} 26... Qa7 {[%clk 0:01:18.5]} 27. Bc4 {[%clk 0:02:06.3]} 27...
Rc8 {[%clk 0:01:17.7]} 28. Ng5 {[%clk 0:01:59.6]} 28... Bh6 {[%clk 0:01:13.3]}
29. b5 {[%clk 0:01:39.4]} 29... Qa4 {[%clk 0:00:56.8]} 30. Rc1 {[%clk
0:01:22.5]} 30... Rb8 {[%clk 0:00:22.7]} 31. Rxd6 {[%clk 0:01:13.9]} 1-0

[Event "Late-Titled-Tuesday-Blitz-September-19-2023"]
[Site "Chess.com"]
[Date "2023.09.19"]
[Round "5"]
[White "temus_galaktionov"]
[Black "Firouzja2003"]
[Result "0-1"]
[WhiteElo "2834"]
[BlackElo "3069"]
[TimeControl "180+1"]
[EndTime "14:53:10 PDT"]
[Termination "Firouzja2003 won by resignation"]

1. d4 {[%clk 0:02:59.4]} 1... Nf6 {[%clk 0:02:52.1]} 2. c4 {[%clk 0:02:59.5]}
2... e6 {[%clk 0:02:52.1]} 3. Nf3 {[%clk 0:02:59.7]} 3... d5 {[%clk 0:02:52.4]}
4. Nc3 {[%clk 0:02:59.8]} 4... Bb4 {[%clk 0:02:51.2]} 5. cxd5 {[%clk 0:02:59.8]}
5... exd5 {[%clk 0:02:51.7]} 6. Bg5 {[%clk 0:02:59.8]} 6... O-O {[%clk
0:02:50.8]} 7. e3 {[%clk 0:02:59.2]} 7... Bf5 {[%clk 0:02:50.8]} 8. Bd3 {[%clk
0:02:58.9]} 8... Bxd3 {[%clk 0:02:50.5]} 9. Qxd3 {[%clk 0:02:59.8]} 9... Nbd7
{[%clk 0:02:49.7]} 10. O-O {[%clk 0:03:00]} 10... c6 {[%clk 0:02:46.2]} 11. a3
{[%clk 0:02:57.6]} 11... Bd6 {[%clk 0:02:41.5]} 12. b4 {[%clk 0:02:51.7]} 12...
Re8 {[%clk 0:02:36.5]} 13. b5 {[%clk 0:02:44.3]} 13... Qa5 {[%clk 0:02:32]} 14.
bxc6 {[%clk 0:02:43.9]} 14... bxc6 {[%clk 0:02:32.7]} 15. Rfc1 {[%clk
0:02:41.4]} 15... Ne4 {[%clk 0:02:31.7]} 16. Bf4 {[%clk 0:02:38.1]} 16... Bxf4
{[%clk 0:02:21.9]} 17. exf4 {[%clk 0:02:39]} 17... Rab8 {[%clk 0:02:22.2]} 18.
Qc2 {[%clk 0:02:35.4]} 18... Nd6 {[%clk 0:02:16.4]} 19. Qa4 {[%clk 0:02:04.4]}
19... Qxa4 {[%clk 0:02:02.9]} 20. Nxa4 {[%clk 0:02:05.3]} 20... Nc4 {[%clk
0:02:03.2]} 21. Nc5 {[%clk 0:02:02.3]} 21... Nxc5 {[%clk 0:01:57.2]} 22. dxc5
{[%clk 0:02:03.2]} 22... Rb5 {[%clk 0:01:57.6]} 23. Nd4 {[%clk 0:01:21.8]} 23...
Rxc5 {[%clk 0:01:57]} 24. Rab1 {[%clk 0:01:21.5]} 24... Nxa3 {[%clk 0:01:51.1]}
25. Rxc5 {[%clk 0:01:21]} 25... Nxb1 {[%clk 0:01:51.6]} 26. g3 {[%clk
0:01:17.8]} 26... Rc8 {[%clk 0:01:49.8]} 27. Nxc6 {[%clk 0:01:10]} 27... Kf8
{[%clk 0:01:42.6]} 28. Rb5 {[%clk 0:01:09.8]} 28... Rxc6 {[%clk 0:01:29.6]} 29.
Rxb1 {[%clk 0:01:09.5]} 29... a5 {[%clk 0:01:10.5]} 30. Rb8+ {[%clk 0:01:08.2]}
30... Ke7 {[%clk 0:01:10.4]} 31. Ra8 {[%clk 0:01:09.1]} 31... Rc5 {[%clk
0:01:07.6]} 32. Kf1 {[%clk 0:01:09.3]} 32... Kd6 {[%clk 0:01:01.7]} 33. Ra6+
{[%clk 0:01:03.8]} 33... Kc7 {[%clk 0:01:02.1]} 34. Ra7+ {[%clk 0:01:01.3]}
34... Kb6 {[%clk 0:01:02.6]} 35. Rxf7 {[%clk 0:01:00.9]} 35... a4 {[%clk
0:01:02.9]} 36. Re7 {[%clk 0:00:40.4]} 36... a3 {[%clk 0:00:59.5]} 37. Re2
{[%clk 0:00:40.5]} 37... Ra5 {[%clk 0:00:58.4]} 38. Ra2 {[%clk 0:00:40.6]} 38...
Kc5 {[%clk 0:00:58.9]} 39. Ke2 {[%clk 0:00:41]} 39... Kc4 {[%clk 0:00:59.5]} 0-1

[Event "Late-Titled-Tuesday-Blitz-September-19-2023"]
[Site "Chess.com"]
[Date "2023.09.19"]
[Round "5"]
[White "McCarthyStone"]
[Black "tarno17"]
[Result "1-0"]
[WhiteElo "2437"]
[BlackElo "2155"]
[TimeControl "180+1"]
[EndTime "14:53:10 PDT"]
[Termination "McCarthyStone won on time"]

1. c4 {[%clk 0:03:00]} 1... e5 {[%clk 0:03:00.1]} 2. Nc3 {[%clk 0:03:00.4]} 2...
Nf6 {[%clk 0:02:53.9]} 3. g3 {[%clk 0:03:00.1]} 3... Bc5 {[%clk 0:02:53.9]} 4.
Bg2 {[%clk 0:02:59.8]} 4... O-O {[%clk 0:02:54.2]} 5. a3 {[%clk 0:02:58.2]} 5...
a5 {[%clk 0:02:54.2]} 6. e3 {[%clk 0:02:58]} 6... Nc6 {[%clk 0:02:46.4]} 7. Nge2
{[%clk 0:02:57.9]} 7... Re8 {[%clk 0:02:39.8]} 8. O-O {[%clk 0:02:57.7]} 8... d6
{[%clk 0:02:18.3]} 9. d4 {[%clk 0:02:57.4]} 9... Ba7 {[%clk 0:02:06.6]} 10. b3
{[%clk 0:02:56.5]} 10... Bg4 {[%clk 0:01:57]} 11. d5 {[%clk 0:02:54.6]} 11...
Ne7 {[%clk 0:01:55.9]} 12. h3 {[%clk 0:02:53.3]} 12... Bxe2 {[%clk 0:01:50.4]}
13. Qxe2 {[%clk 0:02:50.9]} 13... Ng6 {[%clk 0:01:33.7]} 14. h4 {[%clk
0:02:41.5]} 14... Qd7 {[%clk 0:01:18.7]} 15. h5 {[%clk 0:02:36.9]} 15... Ne7
{[%clk 0:01:18.7]} 16. Bb2 {[%clk 0:02:36.4]} 16... h6 {[%clk 0:01:18.1]} 17.
Rac1 {[%clk 0:02:33.3]} 17... Qg4 {[%clk 0:01:15.3]} 18. Qxg4 {[%clk 0:02:26]}
18... Nxg4 {[%clk 0:01:16.2]} 19. Bf3 {[%clk 0:02:26.3]} 19... Nf6 {[%clk
0:01:16.3]} 20. Kg2 {[%clk 0:02:26.7]} 20... Nf5 {[%clk 0:00:55.2]} 21. b4
{[%clk 0:02:22.2]} 21... e4 {[%clk 0:00:41.4]} 22. Be2 {[%clk 0:02:20.4]} 22...
axb4 {[%clk 0:00:40.4]} 23. axb4 {[%clk 0:02:20.4]} 23... Bb6 {[%clk 0:00:38.4]}
24. Ra1 {[%clk 0:02:19.8]} 24... g6 {[%clk 0:00:30.3]} 25. hxg6 {[%clk 0:02:19]}
25... fxg6 {[%clk 0:00:31.2]} 26. Na4 {[%clk 0:02:15.5]} 26... Kf7 {[%clk
0:00:27]} 27. Nxb6 {[%clk 0:02:14.6]} 27... cxb6 {[%clk 0:00:27.9]} 28. g4
{[%clk 0:02:08.6]} 28... Nh4+ {[%clk 0:00:24.3]} 29. Kg3 {[%clk 0:02:08.7]}
29... g5 {[%clk 0:00:24.4]} 30. Bd4 {[%clk 0:02:08]} 30... Ra6 {[%clk
0:00:12.8]} 31. c5 {[%clk 0:02:07.6]} 31... Rxa1 {[%clk 0:00:12.4]} 32. Rxa1
{[%clk 0:02:08.2]} 32... bxc5 {[%clk 0:00:13.3]} 33. bxc5 {[%clk 0:02:08.3]}
33... dxc5 {[%clk 0:00:14.2]} 34. Bxc5 {[%clk 0:02:08]} 34... Rc8 {[%clk
0:00:14.5]} 35. Bd4 {[%clk 0:02:05.7]} 35... Rc2 {[%clk 0:00:13.2]} 36. Bd1
{[%clk 0:02:01.7]} 36... Rd2 {[%clk 0:00:12.2]} 37. d6 {[%clk 0:01:54.9]} 37...
Ke6 {[%clk 0:00:06.5]} 38. Bb3+ {[%clk 0:01:54.5]} 38... Kd7 {[%clk 0:00:06.6]}
39. Bxf6 {[%clk 0:01:53.6]} 39... Kxd6 {[%clk 0:00:05.6]} 40. Rd1 {[%clk
0:01:49.5]} 40... Rxd1 {[%clk 0:00:04.1]} 41. Bxd1 {[%clk 0:01:50.2]} 41... b5
{[%clk 0:00:03.4]} 42. Bg7 {[%clk 0:01:50.3]} 42... h5 {[%clk 0:00:02.1]} 43.
gxh5 {[%clk 0:01:48.5]} 43... Nf5+ {[%clk 0:00:02]} 44. Kg4 {[%clk 0:01:48.7]}
44... Nxg7 {[%clk 0:00:02.9]} 45. Kxg5 {[%clk 0:01:49.2]} 45... b4 {[%clk
0:00:02.8]} 46. h6 {[%clk 0:01:47.8]} 46... Ne6+ {[%clk 0:00:02.7]} 47. Kf6
{[%clk 0:01:45.4]} 47... Nf8 {[%clk 0:00:02.3]} 48. Kf7 {[%clk 0:01:44.2]} 48...
Nh7 {[%clk 0:00:02.7]} 49. Kg7 {[%clk 0:01:43]} 49... Ng5 {[%clk 0:00:02]} 50.
Kg6 {[%clk 0:01:43.1]} 1-0

[Event "Late-Titled-Tuesday-Blitz-September-19-2023"]
[Site "Chess.com"]
[Date "2023.09.19"]
[Round "5"]
[White "Mesa_1"]
[Black "VitaliyBernadskiy"]
[Result "0-1"]
[WhiteElo "2593"]
[BlackElo "2852"]
[TimeControl "180+1"]
[EndTime "14:53:15 PDT"]
[Termination "VitaliyBernadskiy won by resignation"]

1. e4 {[%clk 0:02:59.3]} 1... c5 {[%clk 0:02:57.9]} 2. Nf3 {[%clk 0:02:58.5]}
2... e6 {[%clk 0:02:58.8]} 3. Nc3 {[%clk 0:02:57.1]} 3... a6 {[%clk 0:02:58.3]}
4. d4 {[%clk 0:02:57.6]} 4... cxd4 {[%clk 0:02:58.9]} 5. Nxd4 {[%clk 0:02:58.5]}
5... b5 {[%clk 0:02:59.4]} 6. Bd3 {[%clk 0:02:59.1]} 6... Qb6 {[%clk 0:02:58]}
7. Be3 {[%clk 0:02:58.6]} 7... Bc5 {[%clk 0:02:57.6]} 8. Be2 {[%clk 0:02:59.2]}
8... Nc6 {[%clk 0:02:53.9]} 9. Nxc6 {[%clk 0:02:58.6]} 9... Bxe3 {[%clk
0:02:54]} 10. fxe3 {[%clk 0:02:58.1]} 10... Qxc6 {[%clk 0:02:41.7]} 11. Qd4
{[%clk 0:02:58.6]} 11... f6 {[%clk 0:02:28.6]} 12. Bh5+ {[%clk 0:02:32.2]} 12...
g6 {[%clk 0:02:18.1]} 13. Bf3 {[%clk 0:02:33.1]} 13... e5 {[%clk 0:02:18.1]} 14.
Qd2 {[%clk 0:02:30.3]} 14... Ne7 {[%clk 0:02:18]} 15. a4 {[%clk 0:02:27.2]}
15... b4 {[%clk 0:02:17.1]} 16. Nd5 {[%clk 0:02:27.8]} 16... Nxd5 {[%clk
0:02:17.3]} 17. exd5 {[%clk 0:02:28.7]} 17... Qd6 {[%clk 0:02:16]} 18. e4 {[%clk
0:02:18.4]} 18... a5 {[%clk 0:02:14.5]} 19. O-O {[%clk 0:02:16.5]} 19... O-O
{[%clk 0:02:09.4]} 20. Be2 {[%clk 0:02:14.2]} 20... Qc5+ {[%clk 0:02:05.9]} 21.
Kh1 {[%clk 0:02:13.2]} 21... d6 {[%clk 0:02:04.6]} 22. Bb5 {[%clk 0:01:59.8]}
22... Ra7 {[%clk 0:02:04.5]} 23. c3 {[%clk 0:01:54.1]} 23... bxc3 {[%clk
0:01:59.8]} 24. Qxc3 {[%clk 0:01:49.6]} 24... Qxc3 {[%clk 0:01:58.7]} 25. bxc3
{[%clk 0:01:50.5]} 25... f5 {[%clk 0:01:52.6]} 26. Bc6 {[%clk 0:01:28.8]} 26...
Ba6 {[%clk 0:01:50.5]} 27. Rfe1 {[%clk 0:01:23.5]} 27... Bd3 {[%clk 0:01:30.9]}
28. exf5 {[%clk 0:01:17.1]} 28... gxf5 {[%clk 0:01:30.9]} 29. Re3 {[%clk
0:01:07.8]} 29... Bc4 {[%clk 0:01:27.6]} 30. Rb1 {[%clk 0:01:05.7]} 30... f4
{[%clk 0:01:26.9]} 31. Ree1 {[%clk 0:00:59.4]} 31... Rg7 {[%clk 0:01:19.9]} 32.
Rbd1 {[%clk 0:00:42.9]} 32... f3 {[%clk 0:01:13.5]} 33. gxf3 {[%clk 0:00:42.9]}
33... Rxf3 {[%clk 0:01:14.4]} 34. Bb5 {[%clk 0:00:43.2]} 34... Rxc3 {[%clk
0:01:13.1]} 35. Bxc4 {[%clk 0:00:36.2]} 35... Rxc4 {[%clk 0:01:14]} 36. Rb1
{[%clk 0:00:36]} 36... Rg6 {[%clk 0:01:06.9]} 37. Ra1 {[%clk 0:00:29.2]} 37...
Rd4 {[%clk 0:01:03.9]} 38. Red1 {[%clk 0:00:27]} 38... Rxd1+ {[%clk 0:01:03.8]}
39. Rxd1 {[%clk 0:00:27.9]} 39... Rg4 {[%clk 0:01:03.9]} 40. Rc1 {[%clk
0:00:26.6]} 40... Rd4 {[%clk 0:01:02.2]} 0-1

[Event "Late-Titled-Tuesday-Blitz-September-19-2023"]
[Site "Chess.com"]
[Date "2023.09.19"]
[Round "5"]
[White "Nikachu"]
[Black "tteshan"]
[Result "0-1"]
[WhiteElo "2195"]
[BlackElo "2512"]
[TimeControl "180+1"]
[EndTime "14:53:15 PDT"]
[Termination "tteshan won by resignation"]

1. e4 {[%clk 0:03:00.9]} 1... c5 {[%clk 0:02:59.2]} 2. Nf3 {[%clk 0:03:00.8]}
2... Nc6 {[%clk 0:02:59.3]} 3. d4 {[%clk 0:03:01.4]} 3... cxd4 {[%clk
0:03:00.2]} 4. Nxd4 {[%clk 0:03:01.6]} 4... g6 {[%clk 0:03:00.7]} 5. c4 {[%clk
0:03:01.5]} 5... Bg7 {[%clk 0:03:01.1]} 6. Be3 {[%clk 0:03:01.4]} 6... Nf6
{[%clk 0:03:01.7]} 7. Nc3 {[%clk 0:03:01.4]} 7... O-O {[%clk 0:03:02.2]} 8. Nc2
{[%clk 0:03:01.7]} 8... d6 {[%clk 0:03:01.1]} 9. Be2 {[%clk 0:03:01.6]} 9... Be6
{[%clk 0:03:01.7]} 10. O-O {[%clk 0:03:01.6]} 10... Rc8 {[%clk 0:03:02.2]} 11.
Na3 {[%clk 0:02:54]} 11... a6 {[%clk 0:03:01.2]} 12. Rc1 {[%clk 0:02:53.5]}
12... Qa5 {[%clk 0:03:00.4]} 13. f3 {[%clk 0:02:48.6]} 13... Nd7 {[%clk
0:02:51.8]} 14. Qd2 {[%clk 0:02:48.3]} 14... Rfe8 {[%clk 0:02:50.4]} 15. Rfd1
{[%clk 0:02:47.1]} 15... Nce5 {[%clk 0:02:43.4]} 16. Nd5 {[%clk 0:02:32.9]}
16... Qxd2 {[%clk 0:02:42.1]} 17. Bxd2 {[%clk 0:02:27.9]} 17... Bxd5 {[%clk
0:02:39.2]} 18. cxd5 {[%clk 0:02:28.8]} 18... f5 {[%clk 0:02:25.9]} 19. b3
{[%clk 0:02:01.1]} 19... fxe4 {[%clk 0:02:17.4]} 20. fxe4 {[%clk 0:01:57.7]}
20... Nc5 {[%clk 0:02:14.3]} 21. Bf3 {[%clk 0:01:51.2]} 21... Nxf3+ {[%clk
0:02:14.1]} 22. gxf3 {[%clk 0:01:51.1]} 22... Bb2 {[%clk 0:02:14.5]} 23. Nc4
{[%clk 0:01:45.4]} 23... Bxc1 {[%clk 0:02:14.2]} 24. Bxc1 {[%clk 0:01:43.1]}
24... b5 {[%clk 0:02:11.9]} 25. Ne3 {[%clk 0:01:42.4]} 25... Nd3 {[%clk
0:02:04.9]} 26. Bd2 {[%clk 0:01:33.7]} 26... Ne5 {[%clk 0:02:02.3]} 27. Kg2
{[%clk 0:01:32.3]} 27... Rf8 {[%clk 0:02:01.7]} 28. Rf1 {[%clk 0:01:30.8]} 28...
Rf7 {[%clk 0:01:48.8]} 29. f4 {[%clk 0:01:02.8]} 29... Nd3 {[%clk 0:01:48.8]}
30. Kg3 {[%clk 0:00:58.6]} 30... Kg7 {[%clk 0:01:45]} 31. h4 {[%clk 0:00:51.7]}
31... h5 {[%clk 0:01:44.8]} 32. f5 {[%clk 0:00:50]} 32... Nc5 {[%clk 0:01:25]}
33. Kf4 {[%clk 0:00:41.3]} 33... gxf5 {[%clk 0:01:01.8]} 34. Nxf5+ {[%clk
0:00:39.4]} 34... Kh7 {[%clk 0:01:02]} 35. Rg1 {[%clk 0:00:31.3]} 35... Rg8
{[%clk 0:00:57.7]} 36. Rg5 {[%clk 0:00:30.8]} 36... Rxg5 {[%clk 0:00:55.6]} 37.
hxg5 {[%clk 0:00:31.7]} 37... Kg6 {[%clk 0:00:52.2]} 38. Kg3 {[%clk 0:00:25.9]}
38... Nxe4+ {[%clk 0:00:52]} 0-1

[Event "Late-Titled-Tuesday-Blitz-September-19-2023"]
[Site "Chess.com"]
[Date "2023.09.19"]
[Round "5"]
[White "szefru"]
[Black "victormago"]
[Result "0-1"]
[WhiteElo "2308"]
[BlackElo "2534"]
[TimeControl "180+1"]
[EndTime "14:53:19 PDT"]
[Termination "victormago won by resignation"]

1. e4 {[%clk 0:03:00.9]} 1... c5 {[%clk 0:02:59]} 2. Nf3 {[%clk 0:03:00.7]} 2...
d6 {[%clk 0:02:58.8]} 3. d4 {[%clk 0:03:00.4]} 3... cxd4 {[%clk 0:02:58.8]} 4.
Qxd4 {[%clk 0:03:01.3]} 4... a6 {[%clk 0:02:57.7]} 5. c4 {[%clk 0:02:57.9]} 5...
Nc6 {[%clk 0:02:57.5]} 6. Qe3 {[%clk 0:02:57.9]} 6... g6 {[%clk 0:02:57.5]} 7.
Nc3 {[%clk 0:02:57.8]} 7... Bg7 {[%clk 0:02:57.8]} 8. Be2 {[%clk 0:02:57]} 8...
Nf6 {[%clk 0:02:58]} 9. h3 {[%clk 0:02:56.5]} 9... O-O {[%clk 0:02:58.3]} 10.
O-O {[%clk 0:02:56.5]} 10... h6 {[%clk 0:02:55.9]} 11. Rb1 {[%clk 0:02:56.2]}
11... Be6 {[%clk 0:02:54.5]} 12. Nd4 {[%clk 0:02:52.1]} 12... Nxd4 {[%clk
0:02:52.2]} 13. Qxd4 {[%clk 0:02:52.4]} 13... Nd5 {[%clk 0:02:50.6]} 14. Qd2
{[%clk 0:02:47.4]} 14... Nxc3 {[%clk 0:02:46.3]} 15. bxc3 {[%clk 0:02:48.3]}
15... Qc7 {[%clk 0:02:44.2]} 16. Qb2 {[%clk 0:02:25.6]} 16... Rab8 {[%clk
0:02:41.6]} 17. Qb4 {[%clk 0:02:23.3]} 17... Rfc8 {[%clk 0:02:35.5]} 18. Be3
{[%clk 0:02:02.9]} 18... Bxc4 {[%clk 0:02:18.8]} 19. Bxc4 {[%clk 0:01:37.9]}
19... Qxc4 {[%clk 0:02:12.7]} 20. Ba7 {[%clk 0:01:26.2]} 20... Qxb4 {[%clk
0:01:57.5]} 21. cxb4 {[%clk 0:01:21]} 21... Ra8 {[%clk 0:01:57]} 22. Bb6 {[%clk
0:01:20.5]} 22... Rc6 {[%clk 0:01:55.7]} 23. Be3 {[%clk 0:01:20.1]} 23... b5
{[%clk 0:01:55.7]} 24. Rb3 {[%clk 0:00:41.2]} 24... Rac8 {[%clk 0:01:48.7]} 25.
a4 {[%clk 0:00:33.3]} 25... Rc4 {[%clk 0:01:13.1]} 26. axb5 {[%clk 0:00:22.1]}
26... axb5 {[%clk 0:01:10.3]} 27. f3 {[%clk 0:00:16.5]} 27... Ra8 {[%clk
0:01:03.3]} 28. Rfb1 {[%clk 0:00:13.8]} 28... Ra2 {[%clk 0:01:01.5]} 29. Bf2
{[%clk 0:00:09.2]} 29... Rcc2 {[%clk 0:01:00.7]} 30. Rf1 {[%clk 0:00:08.6]}
30... Bd4 {[%clk 0:00:51.4]} 0-1